fUST/lending_fUST_20241110
["ID","MTS","AMOUNT","RATE_DAILY","PERIOD"]
[341749279,1731193840186,-500.0,0.00031673,5]
[341749280,1731193840198,-500.0,0.00031673,5]
[341749281,1731193840209,-500.0,0.00031673,5]
[341749282,1731193840226,-13448.19012576,0.00031673,2]
[341749283,1731193840237,-320.5923104,0.00031683,2]
[341749284,1731193840247,-500.0,0.00031683,2]
[341749285,1731193840258,-287.15047328,0.00031683,2]
[341749286,1731193840269,-500.0,0.00031683,2]
[341749287,1731193840280,-500.0,0.00031683,2]
[341749288,1731193840292,-383.34511685,0.00031683,2]
[341749289,1731193840306,-500.0,0.00031683,2]
[341749290,1731193840317,-382.2433323,0.00031683,2]
[341749291,1731193840328,-277.72010105,0.00031683,2]
[341749292,1731193840462,-172.15348637,0.00031683,2]
[341749293,1731193840474,-500.0,0.00031683,2]
[341749294,1731193840483,-417.57736081,0.00031683,2]
[341749295,1731193840493,-500.0,0.00031683,2]
[341749296,1731193840501,-500.0,0.00031683,2]
[341749297,1731193840511,-323.49889509,0.00031683,2]
[341749298,1731193840520,-343.37045171,0.00031683,2]
[341749299,1731193840529,-598.13506649,0.00031684,7]
[341749300,1731193840538,-598.13506649,0.00031684,7]
[341749301,1731193840547,-1294586.25885768,0.00031684,10]
[341749400,1731193846174,-1000.0,0.00031569,2]
[341749423,1731193846392,-540.0,0.00031674,10]
[341749425,1731193846402,-199386.26353681,0.00031684,10]
[341749539,1731193948320,163.0,0.00022,2]
[341749540,1731193948661,163.0,0.00023014,2]
[341749542,1731194257428,161.451043,0.00013973,2]
[341749551,1731194273981,607.63888889,0.00020844,2]
[341749552,1731194303110,155.0,0.00020844,2]
[341749553,1731194647868,607.63888889,0.00020844,2]
[341749554,1731194808120,-161.451043,0.00022759,2]
[341749555,1731194808141,-206.86564133,0.00024421,2]
[341749556,1731194808170,-158.0,0.00025,2]
[341749557,1731194808193,-161.0,0.00025,2]
[341749558,1731194808217,-607.63888889,0.00025191,2]
[341749559,1731194808240,-166.666666,0.00025687,2]
[341749560,1731194808272,-234.710054,0.0002585,2]
[341749561,1731194808299,-234.710054,0.0002722,2]
[341749562,1731194808321,-578.64825411,0.00027544,2]
[341749563,1731194808341,-174.161443,0.0002756,2]
[341749564,1731194808368,-300.0,0.00027977,2]
[341749565,1731194808391,-300.0,0.00027977,2]
[341749566,1731194808414,-2642.91531009,0.00027978,2]
[341749568,1731194921690,80636.99292602,0.00021,60]
[341749580,1731194957119,161.482091,0.00013973,2]
[341749620,1731195032108,-161.482091,0.00022174,2]
[341749622,1731195032118,-300.0,0.00024831,2]
[341749624,1731195032127,-7215.30765899,0.00024832,2]
[341749681,1731195038187,-15021.77703091,0.00024832,2]
[341749683,1731195038196,-607.63888889,0.0002492,2]
[341749685,1731195038206,-358.12,0.0002499,3]
[341749687,1731195038215,-298.43,0.0002499,3]
[341749689,1731195038226,-248.69,0.0002499,3]
[341749691,1731195038235,-278.72,0.0002499,3]
[341749693,1731195038244,-836.17,0.0002499,3]
[341749695,1731195038253,-637.62,0.0002499,10]
[341749697,1731195038263,-606.21,0.0002499,10]
[341749699,1731195038272,-1068.36658156,0.00025,2]
[341749701,1731195038281,-119527.24996035,0.00025,2]
[341749703,1731195038291,-152.0,0.00025595,2]
[341749705,1731195038308,-596.86,0.0002636,3]
[341749707,1731195038317,-497.38,0.0002636,3]
[341749709,1731195038327,-557.44,0.0002636,3]
[341749711,1731195038335,-2859.51962582,0.00026849,2]
[341749713,1731195038345,-420.0,0.00026905,2]
[341749715,1731195038355,-500.0,0.00027499,2]
[341749717,1731195038364,-500.0,0.00027499,2]
[341749719,1731195038373,-500.0,0.00027499,2]
[341749721,1731195038382,-500.0,0.00027499,2]
[341749723,1731195038391,-500.0,0.00027499,2]
[341749725,1731195038400,-443.19265004,0.00027499,2]
[341749727,1731195038410,-500.0,0.00027499,2]
[341749729,1731195038419,-510.72024752,0.00027499,2]
[341749731,1731195038428,-500.0,0.00027499,2]
[341749733,1731195038437,-500.0,0.00027499,2]
[341749735,1731195038446,-500.0,0.00027499,2]
[341749737,1731195038455,-500.0,0.00027499,2]
[341749739,1731195038464,-383.63733801,0.00027499,2]
[341749741,1731195038474,-500.0,0.00027499,2]
[341749743,1731195038484,-500.0,0.00027499,2]
[341749746,1731195038493,-7186.79760089,0.000275,2]
[341749748,1731195038502,-730.95718723,0.00027898,2]
[341749750,1731195038511,-160.67333792,0.00027998,10]
[341749752,1731195038520,-730.95718723,0.00028427,2]
[341749753,1731195038530,-470.68241271,0.00028921,2]
[341749755,1731195038538,-730.95718723,0.00028956,2]
[341749757,1731195038549,-1196.27424395,0.00029089,2]
[341749759,1731195038558,-587.0,0.00029153,2]
[341749761,1731195038567,-166.666666,0.00029189,2]
[341749763,1731195038576,-730.95718723,0.00029485,2]
[341749765,1731195038585,-1196.27424394,0.00029717,2]
[341749767,1731195038594,-10000.0,0.000298,2]
[341749769,1731195038603,-2763.83373317,0.0003,2]
[341749771,1731195038612,-730.95718723,0.00030015,2]
[341749773,1731195038621,-525.65903213,0.00030136,2]
[341749775,1731195038630,-500.0,0.00030136,2]
[341749777,1731195038639,-500.0,0.00030136,2]
[341749779,1731195038649,-500.0,0.00030136,2]
[341749781,1731195038658,-539.73454983,0.00030136,2]
[341749783,1731195038667,-514.44365438,0.00030136,2]
[341749785,1731195038676,-500.0,0.00030136,2]
[341749787,1731195038686,-500.0,0.00030136,2]
[341749789,1731195038695,-500.0,0.00030136,2]
[341749791,1731195038704,-500.0,0.00030136,2]
[341749793,1731195038713,-500.0,0.00030136,2]
[341749795,1731195038723,-500.0,0.00030136,2]
[341749797,1731195038732,-500.0,0.00030136,2]
[341749799,1731195038742,-500.0,0.00030136,2]
[341749801,1731195038751,-581.53,0.00030136,2]
[341749803,1731195038760,-500.0,0.00030136,2]
[341749805,1731195038769,-500.0,0.00030136,2]
[341749807,1731195038778,-798.48,0.00030136,2]
[341749809,1731195038787,-500.0,0.00030136,2]
[341749811,1731195038796,-500.0,0.00030136,2]
[341749813,1731195038805,-500.0,0.00030136,2]
[341749815,1731195038814,-500.0,0.00030136,2]
[341749817,1731195038823,-500.0,0.00030136,2]
[341749819,1731195038832,-534.88870715,0.00030136,2]
[341749821,1731195038842,-500.0,0.00030136,2]
[341749823,1731195038851,-500.0,0.00030136,2]
[341749825,1731195038860,-500.0,0.00030136,2]
[341749827,1731195038869,-500.0,0.00030136,2]
[341749829,1731195038878,-500.0,0.00030136,2]
[341749831,1731195038887,-500.0,0.00030136,2]
[341749833,1731195038896,-500.0,0.00030136,2]
[341749835,1731195038905,-500.0,0.00030136,2]
[341749837,1731195038914,-500.0,0.00030136,2]
[341749839,1731195038923,-500.0,0.00030136,2]
[341749841,1731195038932,-518.13936101,0.00030136,2]
[341749843,1731195038941,-612.93,0.00030136,2]
[341749845,1731195038950,-535.4,0.00030136,2]
[341749847,1731195038960,-500.0,0.00030136,2]
[341749849,1731195038969,-520.38,0.00030136,2]
[341749851,1731195038978,-500.0,0.00030136,2]
[341749853,1731195038988,-500.0,0.00030136,2]
[341749855,1731195038997,-500.0,0.00030136,2]
[341749857,1731195039006,-592.04,0.00030136,2]
[341749859,1731195039015,-500.0,0.00030136,2]
[341749861,1731195039024,-624.37,0.00030136,2]
[341749863,1731195039034,-500.0,0.00030136,2]
[341749865,1731195039043,-593.92,0.00030136,2]
[341749867,1731195039053,-500.0,0.00030136,2]
[341749869,1731195039063,-526.58940198,0.00030136,2]
[341749871,1731195039072,-500.0,0.00030136,2]
[341749873,1731195039081,-500.0,0.00030136,2]
[341749875,1731195039090,-500.0,0.00030136,2]
[341749877,1731195039099,-580.87,0.00030136,2]
[341749879,1731195039108,-500.0,0.00030136,2]
[341749881,1731195039118,-500.0,0.00030136,120]
[341749883,1731195039127,-500.0,0.00030136,2]
[341749885,1731195039136,-500.0,0.00030136,2]
[341749887,1731195039147,-537.6,0.00030136,2]
[341749889,1731195039156,-500.0,0.00030136,2]
[341749891,1731195039166,-500.0,0.00030136,2]
[341749893,1731195039175,-500.0,0.00030136,2]
[341749895,1731195039184,-500.0,0.00030136,2]
[341749897,1731195039193,-1196.27424394,0.00030346,2]
[341749899,1731195039202,-161.482091,0.00030374,2]
[341749901,1731195039211,-282.0,0.0003041,2]
[341749903,1731195039222,-614.8859139,0.0003041,2]
[341749905,1731195039231,-500.0,0.0003041,2]
[341749907,1731195039240,-798.48,0.0003041,2]
[341749909,1731195039249,-514.15515499,0.0003041,2]
[341749911,1731195039259,-500.0,0.0003041,2]
[341749913,1731195039268,-500.0,0.0003041,2]
[341749915,1731195039277,-500.0,0.0003041,2]
[341749917,1731195039286,-348.73,0.0003041,2]
[341749919,1731195039295,-593.92,0.0003041,2]
[341749921,1731195039307,-379.97,0.0003041,2]
[341749923,1731195039316,-500.0,0.0003041,120]
[341749925,1731195039325,-154.92,0.0003041,2]
[341749927,1731195039334,-500.0,0.0003041,2]
[341749929,1731195039343,-211.4359248,0.00030521,30]
[341749931,1731195039352,-211.4359248,0.00030521,30]
[341749933,1731195039362,-211.4359248,0.00030521,30]
[341749935,1731195039371,-211.4359248,0.00030521,30]
[341749937,1731195039380,-211.4359248,0.00030521,30]
[341749939,1731195039389,-730.95718723,0.00030544,2]
[341749941,1731195039398,-500.0,0.00030682,2]
[341749943,1731195039407,-171.234043,0.00030683,2]
[341749945,1731195039416,-641.0107931,0.00030683,2]
[341749947,1731195039425,-500.0,0.00030683,2]
[341749949,1731195039434,-622.31348716,0.00030683,2]
[341749951,1731195039443,-500.0,0.00030683,2]
[341749953,1731195039453,-500.0,0.00030683,2]
[341749955,1731195039462,-500.0,0.00030683,2]
[341749957,1731195039471,-500.0,0.00030683,2]
[341749959,1731195039482,-506.25431436,0.00030683,2]
[341749961,1731195039491,-500.0,0.00030683,2]
[341749963,1731195039500,-500.0,0.00030683,2]
[341749964,1731195039509,-500.0,0.00030683,2]
[341749967,1731195039518,-426.22160817,0.00030683,2]
[341749969,1731195039527,-500.0,0.00030683,2]
[341749971,1731195039536,-798.48,0.00030684,2]
[341749974,1731195039547,-199.32,0.00030684,2]
[341749976,1731195039556,-500.0,0.00030684,2]
[341749978,1731195039565,-500.0,0.00030684,2]
[341749979,1731195039575,-593.92,0.00030684,2]
[341749982,1731195039584,-500.0,0.00030684,120]
[341749984,1731195039593,-500.0,0.00030684,2]
[341749986,1731195039603,-298.8341329,0.00030712,30]
[341749988,1731195039612,-596.15270963,0.00030762,5]
[341749989,1731195039621,-330.5288269,0.00030762,5]
[341749991,1731195039630,-160.4720619,0.00030762,5]
[341749993,1731195039640,-500.0,0.00030762,5]
[341749995,1731195039650,-500.0,0.00030762,2]
[341749998,1731195039659,-500.0,0.00030762,5]
[341750000,1731195039669,-302.31379932,0.00030762,5]
[341750002,1731195039679,-512.50676434,0.00030843,5]
[341750003,1731195039688,-161.84547872,0.00030843,5]
[341750006,1731195039698,-284.7646158,0.00030849,30]
[341750008,1731195039707,-323.2958926,0.00030849,30]
[341750010,1731195039716,-211.4359248,0.00030849,30]
[341750011,1731195039726,-303.332509,0.00030849,30]
[341750014,1731195039736,-153.0,0.00030849,30]
[341750015,1731195039745,-303.6262634,0.00030849,30]
[341750017,1731195039754,-153.0,0.00030849,30]
[341750020,1731195039764,-153.0,0.00030849,30]
[341750022,1731195039774,-200.0,0.00030954,2]
[341750023,1731195039783,-500.0,0.00030954,2]
[341750026,1731195039793,-500.0,0.00030954,2]
[341750028,1731195039804,-500.0,0.00030954,2]
[341750029,1731195039813,-500.0,0.00030954,2]
[341750032,1731195039823,-500.0,0.00030954,2]
[341750034,1731195039831,-500.0,0.00030954,2]
[341750035,1731195039840,-500.0,0.00030954,2]
[341750038,1731195039850,-500.0,0.00030954,2]
[341750039,1731195039859,-512.79045235,0.00030954,2]
[341750041,1731195039868,-500.0,0.00030954,2]
[341750044,1731195039877,-500.0,0.00030954,2]
[341750046,1731195039886,-500.0,0.00030954,2]
[341750047,1731195039895,-500.0,0.00030954,2]
[341750049,1731195039904,-500.0,0.00030954,2]
[341750051,1731195039914,-500.0,0.00030954,2]
[341750053,1731195039923,-500.0,0.00030954,2]
[341750055,1731195039932,-500.0,0.00030954,2]
[341750057,1731195039941,-500.0,0.00030954,2]
[341750059,1731195039950,-500.0,0.00030954,2]
[341750062,1731195039959,-500.0,0.00030954,2]
[341750064,1731195039969,-500.0,0.00030954,2]
[341750065,1731195039978,-500.0,0.00030954,2]
[341750068,1731195039987,-500.0,0.00030954,2]
[341750070,1731195039997,-500.0,0.00030954,2]
[341750072,1731195040006,-536.83,0.00030954,2]
[341750074,1731195040015,-500.0,0.00030954,2]
[341750076,1731195040024,-500.0,0.00030954,2]
[341750077,1731195040033,-500.0,0.00030954,2]
[341750080,1731195040042,-500.0,0.00030954,2]
[341750081,1731195040053,-500.0,0.00030954,2]
[341750083,1731195040062,-500.0,0.00030954,2]
[341750085,1731195040071,-530.82652009,0.00030954,2]
[341750088,1731195040080,-500.0,0.00030954,2]
[341750090,1731195040090,-500.0,0.00030954,2]
[341750091,1731195040099,-500.0,0.00030954,2]
[341750093,1731195040108,-505.24516254,0.00030955,2]
[341750095,1731195040117,-500.0,0.00030955,2]
[341750097,1731195040126,-500.0,0.00030955,2]
[341750099,1731195040135,-500.0,0.00030955,2]
[341750101,1731195040145,-500.0,0.00030955,2]
[341750103,1731195040156,-500.0,0.00030955,2]
[341750105,1731195040165,-500.0,0.00030955,2]
[341750107,1731195040174,-604.56990334,0.00030955,2]
[341750109,1731195040184,-500.0,0.00030955,2]
[341750111,1731195040193,-500.0,0.00030955,2]
[341750113,1731195040203,-500.0,0.00030955,2]
[341750115,1731195040212,-555.2746146,0.00030955,2]
[341750117,1731195040221,-500.0,0.00030955,2]
[341750119,1731195040231,-500.0,0.00030955,2]
[341750121,1731195040240,-610.93,0.00030955,2]
[341750123,1731195040249,-500.0,0.00030955,2]
[341750125,1731195040259,-378.45567669,0.00030955,2]
[341750127,1731195040267,-500.0,0.00030955,2]
[341750129,1731195040276,-500.0,0.00030955,2]
[341750131,1731195040285,-552.35069742,0.00030955,2]
[341750133,1731195040294,-500.0,0.00030955,2]
[341750135,1731195040304,-500.0,0.00030955,2]
[341750137,1731195040313,-544.43,0.00030955,2]
[341750148,1731195040322,-500.0,0.00030955,2]
[341750150,1731195040417,-500.0,0.00030955,2]
[341750152,1731195040426,-500.0,0.00030955,2]
[341750154,1731195040435,-500.0,0.00030955,2]
[341750156,1731195040445,-500.0,0.00030955,2]
[341750159,1731195040454,-500.0,0.00030955,2]
[341750160,1731195040463,-500.0,0.00030955,2]
[341750162,1731195040473,-500.0,0.00030955,2]
[341750164,1731195040482,-500.0,0.00030955,2]
[341750167,1731195040491,-500.0,0.00030955,2]
[341750169,1731195040501,-500.0,0.00030955,2]
[341750171,1731195040510,-527.68,0.00030955,2]
[341750173,1731195040519,-500.0,0.00030955,2]
[341750175,1731195040528,-500.0,0.00030955,2]
[341750177,1731195040538,-500.0,0.00030955,2]
[341750179,1731195040548,-500.0,0.00030955,2]
[341750181,1731195040557,-500.0,0.00030955,2]
[341750183,1731195040567,-500.0,0.00030955,2]
[341750185,1731195040575,-500.0,0.00030955,2]
[341750187,1731195040585,-500.0,0.00030955,2]
[341750189,1731195040594,-500.0,0.00030955,2]
[341750191,1731195040603,-500.0,0.00030955,2]
[341750193,1731195040613,-500.0,0.00030955,2]
[341750195,1731195040623,-500.0,0.00030956,2]
[341750197,1731195040632,-500.0,0.00030956,2]
[341750199,1731195040641,-500.0,0.00030956,2]
[341750201,1731195040651,-512.10729365,0.00030956,2]
[341750203,1731195040659,-500.0,0.00030956,2]
[341750205,1731195040669,-500.0,0.00030956,2]
[341750207,1731195040678,-500.0,0.00030956,2]
[341750209,1731195040687,-609.47459032,0.00030956,2]
[341750211,1731195040697,-798.48,0.00030958,2]
[341750213,1731195040706,-500.0,0.00030958,2]
[341750215,1731195040716,-565.14,0.00030958,2]
[341750217,1731195040725,-593.92,0.00030958,2]
[341750219,1731195040735,-500.0,0.00030958,120]
[341750221,1731195040744,-500.0,0.00030958,2]
[341750223,1731195040753,-416.38628456,0.00030973,5]
[341750225,1731195040763,-1196.27424394,0.00030974,2]
[341750227,1731195040772,-730.95718723,0.00031073,2]
[341750229,1731195040781,-500.0,0.00031097,2]
[341750230,1731195040790,-3859.44,0.00031097,120]
[341750231,1731195040802,-166.9364945,0.00031123,30]
[341750232,1731195040811,-153.0,0.00031123,30]
[341750233,1731195040821,-153.0,0.00031123,30]
[341750234,1731195040840,-153.0,0.00031123,30]
[341750235,1731195040849,-153.0,0.00031164,2]
[341750236,1731195040858,-153.0,0.00031164,2]
[341750237,1731195040868,-153.0,0.00031164,2]
[341750238,1731195040877,-153.0,0.00031164,2]
[341750239,1731195040887,-153.0,0.00031164,2]
[341750240,1731195040896,-153.0,0.00031164,2]
[341750241,1731195040905,-153.0,0.00031164,2]
[341750242,1731195040914,-153.0,0.00031164,2]
[341750243,1731195040924,-153.0,0.00031164,2]
[341750244,1731195040933,-153.0,0.00031164,2]
[341750245,1731195040942,-153.0,0.00031164,2]
[341750246,1731195040952,-153.0,0.00031164,2]
[341750247,1731195040961,-153.0,0.00031164,2]
[341750248,1731195040970,-153.0,0.00031164,2]
[341750249,1731195040979,-153.0,0.00031164,2]
[341750250,1731195040992,-500.0,0.00031228,2]
[341750251,1731195041003,-500.0,0.00031228,2]
[341750252,1731195041012,-478.16,0.00031229,2]
[341750253,1731195041020,-151.68,0.00031229,2]
[341750254,1731195041030,-202.34,0.00031229,2]
[341750255,1731195041039,-500.0,0.00031229,2]
[341750256,1731195041050,-537.16,0.00031229,2]
[341750257,1731195041059,-500.0,0.00031229,2]
[341750258,1731195041068,-369.27,0.00031229,2]
[341750259,1731195041077,-506.19,0.00031229,2]
[341750260,1731195041086,-798.48,0.00031232,2]
[341750261,1731195041095,-500.0,0.00031232,2]
[341750262,1731195041104,-593.92,0.00031232,2]
[341750263,1731195041113,-500.0,0.00031232,120]
[341750264,1731195041122,-500.0,0.00031232,2]
[341750265,1731195041131,-1000.0,0.00031352,2]
[341750266,1731195041141,-1000.0,0.00031362,2]
[341750267,1731195041150,-500.0,0.00031366,2]
[341750268,1731195041159,-500.0,0.00031366,2]
[341750269,1731195041168,-6165.61394384,0.00031367,2]
[341750270,1731195041178,-24068.37585412,0.00031367,2]
[341750271,1731195041187,-73875.10108752,0.00031385,2]
[341750272,1731195041195,-1000.0,0.00031399,2]
[341750273,1731195041204,-5653.28200967,0.0003142,2]
[341750274,1731195041213,-1634.81125647,0.00031487,4]
[341750275,1731195041223,-500.0,0.00031498,2]
[341750276,1731195041232,-500.0,0.00031498,2]
[341750277,1731195041241,-674.92,0.00031498,2]
[341750278,1731195041249,-502.03205179,0.00031499,2]
[341750279,1731195041259,-515.4454108,0.00031499,2]
[341750280,1731195041268,-250.0,0.00031499,2]
[341750281,1731195041277,-190.81168242,0.00031499,2]
[341750282,1731195041286,-500.0,0.00031499,2]
[341750283,1731195041295,-500.0,0.00031499,2]
[341750284,1731195041306,-402.52821169,0.00031499,2]
[341750285,1731195041315,-500.0,0.00031499,2]
[341750286,1731195041323,-500.0,0.00031499,2]
[341750287,1731195041333,-500.0,0.00031499,2]
[341750288,1731195041342,-500.0,0.00031499,2]
[341750289,1731195041351,-500.0,0.00031499,2]
[341750290,1731195041360,-405.56761928,0.00031499,2]
[341750291,1731195041369,-629.96539017,0.00031499,2]
[341750292,1731195041379,-500.0,0.00031499,2]
[341750293,1731195041388,-500.0,0.00031499,2]
[341750294,1731195041396,-500.0,0.00031499,2]
[341750295,1731195041405,-500.0,0.00031499,2]
[341750296,1731195041414,-500.0,0.00031499,2]
[341750297,1731195041423,-500.0,0.00031499,2]
[341750298,1731195041433,-500.0,0.00031499,2]
[341750299,1731195041442,-500.0,0.00031499,7]
[341750300,1731195041451,-550.22637413,0.00031499,2]
[341750301,1731195041460,-500.0,0.00031499,2]
[341750302,1731195041468,-500.0,0.00031499,2]
[341750303,1731195041478,-500.0,0.00031499,2]
[341750304,1731195041487,-545.65133441,0.00031499,2]
[341750305,1731195041496,-541.36877064,0.00031499,2]
[341750306,1731195041505,-500.0,0.00031499,2]
[341750307,1731195041514,-500.0,0.00031499,2]
[341750308,1731195041523,-500.0,0.00031499,2]
[341750309,1731195041532,-500.0,0.00031499,2]
[341750310,1731195041541,-605.4993805,0.00031499,2]
[341750311,1731195041551,-500.0,0.00031499,2]
[341750312,1731195041564,-620.56793051,0.00031499,2]
[341750313,1731195041572,-597.0456063,0.00031499,2]
[341750314,1731195041581,-500.0,0.00031499,2]
[341750315,1731195041591,-500.0,0.00031499,2]
[341750316,1731195041600,-500.0,0.00031499,2]
[341750317,1731195041609,-505.19452239,0.00031499,2]
[341750318,1731195041618,-500.0,0.00031499,2]
[341750319,1731195041627,-500.0,0.00031499,2]
[341750320,1731195041636,-500.0,0.00031499,2]
[341750321,1731195041645,-500.0,0.00031499,2]
[341750322,1731195041654,-500.0,0.00031499,2]
[341750323,1731195041664,-294.88160173,0.00031499,2]
[341750324,1731195041673,-164.97792997,0.00031499,2]
[341750325,1731195041683,-500.0,0.00031499,2]
[341750326,1731195041692,-500.0,0.00031499,2]
[341750327,1731195041701,-500.0,0.00031499,2]
[341750328,1731195041711,-501.72714,0.00031499,2]
[341750329,1731195041720,-500.0,0.00031499,2]
[341750330,1731195041729,-500.0,0.00031499,2]
[341750331,1731195041738,-500.0,0.00031499,2]
[341750332,1731195041748,-500.0,0.00031499,2]
[341750333,1731195041757,-500.0,0.00031499,2]
[341750334,1731195041766,-543.65960861,0.00031499,2]
[341750335,1731195041776,-500.0,0.00031499,2]
[341750336,1731195041785,-500.0,0.00031499,2]
[341750337,1731195041794,-500.0,0.00031499,2]
[341750338,1731195041806,-500.0,0.00031499,2]
[341750339,1731195041815,-500.0,0.00031499,2]
[341750340,1731195041824,-500.0,0.00031499,2]
[341750341,1731195041833,-500.0,0.00031499,2]
[341750342,1731195041843,-500.0,0.00031499,2]
[341750343,1731195041852,-500.0,0.00031499,2]
[341750345,1731195041860,-500.0,0.00031499,2]
[341750346,1731195041870,-500.0,0.00031499,2]
[341750347,1731195041879,-509.26745477,0.00031499,2]
[341750348,1731195041888,-500.0,0.00031499,2]
[341750349,1731195041897,-330.71592978,0.00031499,2]
[341750350,1731195041906,-500.0,0.00031499,2]
[341750351,1731195041915,-500.0,0.00031499,2]
[341750352,1731195041925,-294.52,0.000315,31]
[341750353,1731195041934,-294.52,0.000315,31]
[341750354,1731195041943,-294.52,0.000315,31]
[341750356,1731195041952,-294.52,0.000315,31]
[341750358,1731195041962,-294.52,0.000315,31]
[341750360,1731195041971,-294.52,0.000315,31]
[341750361,1731195041981,-294.52,0.000315,31]
[341750362,1731195041991,-294.52,0.000315,31]
[341750363,1731195042000,-294.52,0.000315,31]
[341750364,1731195042010,-294.52,0.000315,31]
[341750365,1731195042019,-294.52,0.000315,31]
[341750366,1731195042027,-294.52,0.000315,31]
[341750367,1731195042037,-11365.88784591,0.00031502,7]
[341750368,1731195042047,-500.0,0.00031502,2]
[341750369,1731195042058,-500.0,0.00031503,2]
[341750370,1731195042067,-500.0,0.00031503,2]
[341750371,1731195042077,-500.0,0.00031505,2]
[341750372,1731195042086,-798.48,0.00031506,2]
[341750373,1731195042095,-500.0,0.00031506,2]
[341750374,1731195042104,-593.92,0.00031506,2]
[341750375,1731195042114,-500.0,0.00031506,120]
[341750376,1731195042123,-500.0,0.00031506,2]
[341750377,1731195042133,-823.0,0.00031587,2]
[341750378,1731195042144,-500.0,0.00031599,2]
[341750380,1731195042159,-8217.19251415,0.000316,2]
[341750381,1731195042169,-8217.19251413,0.000316,2]
[341750383,1731195042178,-8217.19251413,0.000316,2]
[341750385,1731195042187,-8217.19251413,0.000316,2]
[341750387,1731195042197,-500.0,0.000316,36]
[341750389,1731195042205,-151.15553,0.000316,2]
[341750391,1731195042215,-730.95718723,0.00031602,2]
[341750393,1731195042224,-1196.27424394,0.00031602,2]
[341750394,1731195042234,-500.0,0.0003167,2]
[341750395,1731195042243,-211.4359248,0.00031671,30]
[341750396,1731195042252,-211.4359248,0.00031671,30]
[341750397,1731195042261,-211.4359248,0.00031671,30]
[341750398,1731195042270,-211.4359248,0.00031671,30]
[341750399,1731195042279,-211.4359248,0.00031671,30]
[341750400,1731195042288,-211.4359248,0.00031671,30]
[341750401,1731195042297,-211.4359248,0.00031671,30]
[341750402,1731195042307,-211.4359248,0.00031671,30]
[341750403,1731195042316,-153.0,0.00031671,30]
[341750404,1731195042325,-211.4359248,0.00031671,30]
[341750406,1731195042334,-211.4359248,0.00031671,30]
[341750407,1731195042344,-153.0,0.00031671,30]
[341750408,1731195042353,-153.0,0.00031671,30]
[341750409,1731195042362,-211.4359248,0.00031671,30]
[341750410,1731195042371,-153.0,0.00031671,30]
[341750411,1731195042381,-153.0,0.00031671,30]
[341750412,1731195042390,-211.4359248,0.00031671,30]
[341750414,1731195042398,-153.0,0.00031671,30]
[341750416,1731195042407,-211.4359248,0.00031671,30]
[341750418,1731195042416,-153.0,0.00031671,30]
[341750420,1731195042425,-153.0,0.00031671,30]
[341750422,1731195042434,-211.4359248,0.00031671,30]
[341750424,1731195042443,-211.4359248,0.00031671,30]
[341750426,1731195042453,-153.0,0.00031671,30]
[341750428,1731195042462,-153.0,0.00031671,30]
[341750430,1731195042471,-211.4359248,0.00031671,30]